[Event "GER-chT Youth Countries 2018"]
[Site "Wurzburg"]
[Date "2018.10.04"]
[Round "3"]
[White "Hetzner, Hannes"]
[Black "Wu, Leon"]
[Result "1/2-1/2"]
[ECO "B94"]
[WhiteElo "1855"]
[BlackElo "2009"]
[Annotator "NA"]
[PlyCount "139"]
[EventDate "2018.10.03"]
[EventType "team-tourn"]
[EventCountry "GER"]
[SourceTitle "playchess.com"]
[Source "ChessBase"]
[SourceQuality "1"]
[TimeControl "40/5400+30:1800+30"]

1. e4 {[%emt 0:00:00]} c5 {[%emt 0:00:00]} 2. Nf3 {[%emt 0:00:00]} d6 {[%emt 0:00:00]} 3. d4 {[%emt 0:00:00]} cxd4 {[%emt 0:00:00]} 4. Nxd4 {[%emt 0:00:00]} Nf6 {[%emt 0:00:02]} 5. Nc3 {[%emt 0:00:00]} a6 {[%emt 0:00:22]} 6. Bg5 {[%emt 0:00:06]} Nbd7 {[%emt 0:00:39]} 7. Qe2 {[%emt 0:00:21] B94: Sicilian Najdorf: 6 Bg5 Nbd7} Qc7 {[%emt 0:01:42]} (7... h6 8. Bh4 g6 9. f4 Qc7 10. O-O-O Bg7 11. g4 e5 12. fxe5 Nxe5 13. h3 Be6 14. Qf2 Nfd7 {½-½ (26) Carlsen,M (2842)-Svidler,P (2753) Biel 2018}) 8. f4 {[%emt 0:00:48]} b5 {[%emt 0:05:24]} 9. O-O-O {[%emt 0:03:40]} Bb7 {[%emt 0:04:02]} 10. g4 {[%emt 0:08:36]} g6 $146 {[%emt 0:04:49]} ({Predecessor:} 10... b4 11. Nd5 Nxd5 12. exd5 Bxd5 13. Nf5 Nb6 14. Bg2 Bc4 15. Nxd6+ Qxd6 16. Rxd6 Bxe2 {1-0 (25) Kanarek,M (2505)-Samborski,H (2078) Katowice 2017}) 11. Bg2 {[%emt 0:12:32]} O-O-O {[%emt 0:24:53]} 12. Nd5 {[%emt 0:14:10]} Nxd5 {[%emt 0:01:48]} 13. exd5 {[%emt 0:00:14]} Re8 {[%emt 0:02:11]} 14. Rd3 {[%emt 0:03:26]} Nc5 {[%emt 0:02:41]} 15. Rc3 {[%emt 0:01:37]} Bg7 {[%emt 0:02:22]} 16. Rd1 {[%emt 0:02:03]} b4 {[%emt 0:02:42]} 17. Rc4 {[%emt 0:05:45]} a5 {[%emt 0:03:24]} 18. c3 {[%emt 0:05:54]} bxc3 {[%emt 0:04:59]} 19. Rxc3 {[%emt 0:05:28]} Ba6 {[%emt 0:08:35]} 20. Qc2 {[%emt 0:01:25]} e6 {[%emt 0:04:00]} 21. dxe6 {[%emt 0:02:24]} fxe6 {[%emt 0:04:13]} 22. f5 $2 {[%emt 0:15:08]} (22. a3 $18) 22... exf5 {[%emt 0:01:14]} 23. gxf5 {[%emt 0:00:41]} Bxd4 $1 {[%emt 0:01:44]} 24. Rxd4 {[%emt 0:00:26]} Re2 {[%emt 0:03:31]} 25. Rd2 {[%emt 0:03:20]} Re1+ {[%emt 0:00:31]} 26. Rd1 {[%emt 0:00:15]} Re2 {[%emt 0:00:22]} 27. Rd2 {[%emt 0:00:14]} Bd3 {[%emt 0:08:20]} 28. Qd1 {[%emt 0:04:51]} Rxd2 {[%emt 0:00:42]} 29. Qxd2 {[%emt 0:00:59]} (29. Bxd2 $16 Bxf5 30. Qe2) 29... gxf5 {[%emt 0:00:26] [#]} 30. Be3 $1 {[%emt 0:00:38]} Be4 {[%emt 0:02:33]} 31. Bxe4 {[%emt 0:02:20]} fxe4 {[%emt 0:00:06]} 32. Bxc5 {[%emt 0:02:17]} dxc5 {[%emt 0:00:45]} 33. Qe3 {[%emt 0:01:09]} Kb8 $2 {[%emt 0:04:12]} (33... c4 34. Qxe4 Kb8) 34. Rxc5 {[%emt 0:01:33]} Qb6 {[%emt 0:00:42]} 35. Qf4+ {[%emt 0:01:28]} (35. Kb1 $142) 35... Ka7 {[%emt 0:00:57]} 36. Rc7+ {[%emt 0:00:20]} Ka8 {[%emt 0:00:36]} 37. Qxe4+ {[%emt 0:01:05]} Kb8 {[%emt 0:00:13]} 38. Rc3 {[%emt 0:01:23]} Ka7 {[%emt 0:01:38]} 39. Qe7+ {[%emt 0:01:13]} Ka8 {[%emt 0:00:19]} 40. Qe4+ {[%emt 0:00:52]} Ka7 {[%emt 0:01:23]} 41. Qe3 {[%emt 0:19:50]} Qxe3+ {[%emt 0:02:32]} 42. Rxe3 {[%emt 0:00:07]} h5 {[%emt 0:01:24]} (42... Kb6 $16 {is a better defense.} 43. Re6+ Kb5 44. Re5+ Kb6) 43. Re6 $2 {[%emt 0:03:59]} (43. h4 $18 {and White stays clearly on top.}) 43... Rg8 $2 {[%emt 0:00:54]} (43... Rc8+ $16 44. Kd2 Rc4) 44. Kd2 {[%emt 0:01:21]} Rg2+ {[%emt 0:00:20]} 45. Re2 {[%emt 0:00:06]} Rg5 {[%emt 0:00:22]} 46. Ke3 {[%emt 0:00:46]} Kb6 {[%emt 0:00:42]} (46... h4 $14) 47. Kf4 {[%emt 0:00:47]} Rg4+ {[%emt 0:00:21]} 48. Kf3 {[%emt 0:00:07]} Ra4 {[%emt 0:01:46]} 49. a3 $16 {[%emt 0:01:01]} Rh4 {[%emt 0:00:54]} 50. Kg3 {[%emt 0:00:36]} Rg4+ {[%emt 0:00:05]} 51. Kh3 {[%emt 0:00:06]} Rg5 {[%emt 0:00:16]} 52. Kh4 {[%emt 0:00:40]} Rf5 {[%emt 0:02:50]} 53. h3 {[%emt 0:00:48]} Kb5 {[%emt 0:02:05]} 54. Re4 {[%emt 0:03:03]} Rd5 {[%emt 0:04:40]} 55. b4 {[%emt 0:01:27]} a4 {[%emt 0:00:17]} 56. Re3 {[%emt 0:00:39]} Kc4 {[%emt 0:01:35]} 57. Rg3 {[%emt 0:00:40]} Re5 {[%emt 0:00:21]} 58. Rf3 {[%emt 0:00:41]} Rd5 {[%emt 0:00:47]} 59. Kg3 {[%emt 0:00:32]} Re5 {[%emt 0:01:54]} 60. Kf4 {[%emt 0:00:17]} Rb5 {[%emt 0:00:42]} 61. Rg3 {[%emt 0:00:51]} Rd5 {[%emt 0:00:32]} 62. Re3 {[%emt 0:00:14]} Rd6 {[%emt 0:00:49]} 63. Kg5 {[%emt 0:00:36]} Rd5+ {[%emt 0:00:25]} 64. Kg6 {[%emt 0:00:13]} h4 {[%emt 0:00:38]} 65. Kf6 {[%emt 0:00:30]} Rh5 {[%emt 0:00:40]} 66. Re5 {[%emt 0:00:57]} Rh6+ {[%emt 0:00:41]} 67. Kg5 {[%emt 0:00:34]} Rh8 {[%emt 0:00:22]} 68. b5 {[%emt 0:00:44]} Kb3 {[%emt 0:00:40]} 69. Re3+ {[%emt 0:00:21]} Ka2 {[%emt 0:00:17]} 70. b6 {[%emt 0:02:07]} 1/2-1/2

[Event "GER-chT Youth Countries 2018"]
[Site "Wurzburg"]
[Date "2018.10.04"]
[Round "3"]
[White "Bashylina, Luisa"]
[Black "Roncea, Andrea-Alexandra"]
[Result "1-0"]
[ECO "C68"]
[WhiteElo "1837"]
[BlackElo "1515"]
[Annotator "NA RC"]
[PlyCount "119"]
[EventDate "2018.10.03"]
[EventType "team-tourn"]
[EventCountry "GER"]
[SourceTitle "playchess.com"]
[Source "ChessBase"]
[SourceQuality "1"]
[TimeControl "40/5400+30:1800+30"]

1. e4 {[%emt 0:00:00]} e5 {[%emt 0:00:00]} 2. Nf3 {[%emt 0:00:00]} Nc6 {[%emt 0:00:00]} 3. Bb5 {[%emt 0:00:00]} a6 {[%emt 0:00:00]} 4. Bxc6 {[%emt 0:00:04]} dxc6 {[%emt 0:00:00]} 5. O-O {[%emt 0:00:06]} Bg4 {[%emt 0:02:22]} 6. h3 {[%emt 0:00:18]} Bh5 {[%emt 0:00:37]} 7. d3 {[%emt 0:03:28]} Bd6 {[%emt 0:01:45]} 8. Be3 {[%emt 0:00:44] C68: Ruy Lopez: Exchange Variation, sidelines} (8. Nbd2 Ne7 9. Nc4 f6 10. Be3 c5 11. c3 Nc6 12. Qb3 b6 13. Ncd2 Bf7 14. Qc2 Be6 15. d4 cxd4 16. cxd4 Nxd4 17. Bxd4 exd4 18. Nxd4 {½-½ (45) Kovacevic,A (2563)-Szabo,K (2548) Zadar 2011}) 8... Qf6 {[%emt 0:04:45]} 9. Nbd2 {[%emt 0:01:04]} c5 {[%emt 0:03:39]} 10. c3 {[%emt 0:04:43]} Ne7 {[%emt 0:01:18]} 11. Qb3 {[%emt 0:03:14]} b6 $146 {[%emt 0:27:39]} ({Predecessor:} 11... O-O 12. Bg5 Qe6 13. Qxe6 fxe6 14. g4 Be8 15. Nxe5 h6 16. Bxe7 Bxe7 {½-½ (30) Bayarri Bosch,E-Medina Garcia,A Las Palmas 1964}) 12. Rfe1 {[%emt 0:07:56]} Bxf3 {[%emt 0:08:52]} 13. Nxf3 {[%emt 0:00:16]} h6 {[%emt 0:02:10]} 14. d4 {[%emt 0:03:27]} O-O {[%emt 0:06:36]} 15. Rad1 {[%emt 0:04:08]} cxd4 {[%emt 0:02:42]} 16. cxd4 {[%emt 0:00:26]} Rfd8 {[%emt 0:00:55]} 17. Qc3 {[%emt 0:01:42]} Ng6 {[%emt 0:01:05]} 18. a3 {[%emt 0:03:13]} a5 {[%emt 0:00:32]} 19. Nh2 {[%emt 0:03:53]} Qe7 {[%emt 0:07:29]} 20. Ng4 {[%emt 0:02:57]} h5 {[%emt 0:01:06]} 21. Nh2 {[%emt 0:00:40]} Rac8 {[%emt 0:02:06]} 22. d5 {[%emt 0:03:36]} f6 {[%emt 0:01:11]} 23. Qd3 {[%emt 0:01:37]} Nf8 {[%emt 0:01:01]} 24. Nf3 {[%emt 0:00:30]} g5 {[%emt 0:00:53]} 25. Qe2 {[%emt 0:02:35]} Qh7 {[%emt 0:02:06]} 26. Nd2 {[%emt 0:01:48]} Nd7 {[%emt 0:01:17]} 27. Rc1 {[%emt 0:04:01]} Kf7 {[%emt 0:00:54]} 28. Qf3 {[%emt 0:01:55]} Ke7 {[%emt 0:01:51]} 29. Qf5 {[%emt 0:05:31]} Qxf5 {[%emt 0:03:11]} 30. exf5 {[%emt 0:00:05]} Kf7 {[%emt 0:01:02]} 31. Ne4 {[%emt 0:00:32]} Be7 {[%emt 0:00:25]} 32. Rc2 {[%emt 0:01:37]} Nb8 {[%emt 0:01:20]} (32... Nc5 $1 $14 33. Bxc5 bxc5) 33. Rec1 {[%emt 0:01:03]} Rxd5 {[%emt 0:01:42]} 34. Rxc7 {[%emt 0:00:10]} Rxc7 {[%emt 0:01:35]} 35. Rxc7 {[%emt 0:00:05]} Nd7 {[%emt 0:01:24]} 36. Rb7 {[%emt 0:03:07]} (36. Kf1 $16) 36... Bd8 {[%emt 0:01:01]} (36... Ke8 $142) 37. Kf1 {[%emt 0:01:22]} Ke7 {[%emt 0:01:54]} 38. Nc3 {[%emt 0:01:14]} Rd6 {[%emt 0:00:59]} 39. Ke2 {[%emt 0:01:17]} Ke8 {[%emt 0:03:30]} 40. g3 {[%emt 0:03:20]} Rc6 {[%emt 0:02:24]} 41. f4 {[%emt 0:31:41]} (41. Kd3 $16) 41... exf4 {[%emt 0:32:04]} 42. gxf4 {[%emt 0:00:32]} gxf4 {[%emt 0:01:28]} 43. Bxf4 {[%emt 0:00:29]} Rc5 {[%emt 0:01:20]} 44. Ke3 {[%emt 0:03:50]} Rxf5 {[%emt 0:00:00]} 45. b4 {[%emt 0:00:00]} axb4 {[%emt 0:00:00]} 46. axb4 {[%emt 0:00:00]} Ke7 $2 {[%emt 0:00:00]} (46... h4 $1 $11) 47. Ke4 {[%emt 0:00:00]} Ke6 {[%emt 0:00:00]} 48. Ne2 {[%emt 0:00:00]} Rxf4+ $2 {[%emt 0:00:00]} (48... Re5+ {might work better.} 49. Kd3 (49. Bxe5 fxe5 50. Nc3 Nf6+ 51. Kf3 Kf5 $18) 49... Rd5+ 50. Nd4+ Rxd4+ 51. Kxd4 f5) 49. Nxf4+ {[%emt 0:00:00]} ({Less strong is} 49. Kxf4 Ne5 $18) 49... Ke7 {[%emt 0:00:00]} (49... Kd6 $142 50. Nxh5 Kc6) 50. Nxh5 {[%emt 0:00:00]} Ke6 {[%emt 0:00:00]} 51. Nf4+ {[%emt 0:00:00]} Ke7 {[%emt 0:00:00]} 52. h4 {[%emt 0:00:00]} Ke8 {[%emt 0:00:00]} 53. h5 {[%emt 0:00:00]} Be7 {[%emt 0:00:00]} 54. h6 {[%emt 0:00:00]} Bf8 {[%emt 0:00:00]} 55. h7 {[%emt 0:00:00]} Bg7 {[%emt 0:00:00]} 56. Ng6 {[%emt 0:00:00]} Kd8 {[%emt 0:00:00]} 57. h8=Q+ {[%emt 0:00:00]} (57. Kd5 $142 Kc8 58. Ra7 Bh8 59. Nxh8 Nf8 60. Ra8+ Kc7 61. Rxf8 b5 62. Ng6 Kb6 63. Rf7 f5 64. h8=Q Ka6 65. Qf6#) 57... Bxh8 {[%emt 0:00:00]} 58. Nxh8 $18 {[%emt 0:00:00]} (58. Kd5 $142 Ne5 59. Nxh8 Kc8 60. Rxb6 Nd3 61. b5 f5 62. Rc6+ Kb8 63. Kd4) 58... Kc8 {[%emt 0:00:00]} 59. Ra7 {[%emt 0:00:00]} Kb8 {[%emt 0:00:00]} 60. Rxd7 {[%emt 0:00:00]} 1-0

[Event "GER-chT Youth Countries 2018"]
[Site "Wurzburg"]
[Date "2018.10.04"]
[Round "3"]
[White "Moenster, Madita"]
[Black "Hommel, Niclas"]
[Result "1-0"]
[ECO "B41"]
[WhiteElo "1817"]
[BlackElo "1915"]
[Annotator "NA RC"]
[PlyCount "79"]
[EventDate "2018.10.03"]
[EventType "team-tourn"]
[EventCountry "GER"]
[SourceTitle "playchess.com"]
[Source "ChessBase"]
[SourceQuality "1"]
[TimeControl "40/5400+30:1800+30"]

1. e4 {[%emt 0:00:00]} c5 {[%emt 0:00:00]} 2. Nf3 {[%emt 0:00:00]} e6 {[%emt 0:00:00]} 3. d4 {[%emt 0:00:00]} cxd4 {[%emt 0:00:00]} 4. Nxd4 {[%emt 0:00:01]} a6 {[%emt 0:00:00]} 5. c4 {[%emt 0:00:23]} Nf6 {[%emt 0:00:04]} 6. Nc3 {[%emt 0:00:52]} Qc7 {[%emt 0:01:39]} 7. a3 {[%emt 0:01:54]} b6 {[%emt 0:05:24]} 8. Be3 {[%emt 0:05:18]} Bb7 {[%emt 0:01:11] B41: Sicilian: Kan Variation: 5 c4} 9. Bd3 {[%emt 0:04:11]} (9. f3 Be7 10. Be2 O-O 11. b4 d5 12. exd5 exd5 13. Nf5 dxc4 14. Qd4 Nc6 15. Qxb6 Qd7 16. Nxe7+ Nxe7 {0-1 (43) Sevian,S (2614)-Grandelius,N (2647) chess.com INT 2018}) 9... d6 {[%emt 0:02:41]} 10. f4 {[%emt 0:12:49]} Nbd7 {[%emt 0:10:52]} 11. Qf3 {[%emt 0:13:00]} Nc5 $146 {[%emt 0:06:02]} ({Predecessor:} 11... e5 12. Nf5 g6 13. Ng3 Bg7 14. Rc1 Nc5 15. Bxc5 dxc5 {½-½ (72) Sandvik,T (2060)-Stegariu,A (2156) Groningen 2014}) 12. Bc2 {[%emt 0:01:17]} g6 {[%emt 0:20:49]} 13. O-O {[%emt 0:02:58]} Bg7 {[%emt 0:04:08]} 14. Rac1 {[%emt 0:05:16]} O-O {[%emt 0:03:52]} 15. b4 {[%emt 0:04:55]} Ncd7 {[%emt 0:00:10]} 16. Bd3 {[%emt 0:00:40]} e5 {[%emt 0:04:46]} 17. Nd5 {[%emt 0:03:54]} Qd8 {[%emt 0:04:10]} 18. Nb3 {[%emt 0:04:13]} Nxd5 {[%emt 0:09:23]} 19. cxd5 {[%emt 0:01:01]} exf4 {[%emt 0:01:07]} 20. Bxf4 {[%emt 0:05:21]} Ne5 {[%emt 0:00:05]} 21. Qe3 {[%emt 0:00:57]} Re8 {[%emt 0:04:48]} 22. Rc2 {[%emt 0:07:13]} Rc8 {[%emt 0:03:22]} 23. Rfc1 {[%emt 0:01:19]} Rxc2 {[%emt 0:01:31]} 24. Rxc2 {[%emt 0:00:07]} h5 {[%emt 0:02:41]} 25. Be2 {[%emt 0:02:53]} b5 {[%emt 0:04:12]} 26. Qc1 {[%emt 0:04:38]} Kh7 {[%emt 0:02:32]} 27. Rc7 {[%emt 0:01:48]} Re7 {[%emt 0:00:10]} 28. Rc2 {[%emt 0:01:27]} (28. Rxe7 $11 {keeps the balance.} Qxe7 29. Qc2) 28... Qe8 {[%emt 0:02:33]} 29. Na5 $1 {[%emt 0:04:49]} Qd7 {[%emt 0:01:36]} (29... Nc4 $11 30. Bxc4 bxc4 31. Nxb7 Bd4+ 32. Kf1 Rxb7 33. Rxc4 Qxe4) 30. Bg5 {[%emt 0:02:00]} f6 {[%emt 0:00:05]} 31. Bh4 {[%emt 0:02:12]} Nf7 {[%emt 0:01:55]} 32. Bf3 {[%emt 0:02:02]} g5 {[%emt 0:00:09]} 33. Bf2 {[%emt 0:00:49]} g4 {[%emt 0:00:06]} 34. Be2 {[%emt 0:00:13]} Ng5 $2 {[%emt 0:00:26] [#]} ({Lieber} 34... Rxe4 $14 35. Nxb7 Qxb7) 35. Bd3 $1 {[%emt 0:00:22]} Bh6 $2 {[%emt 0:02:08]} (35... Kg8 36. Nxb7 Qxb7 37. Rc8+ Kf7) 36. Be3 $16 {[%emt 0:01:10]} (36. e5+ $1 $18 {ist der präzise Gewinnweg.} Kg8 37. e6 Rxe6 38. dxe6 Qxe6 39. Qf1 (39. Nxb7 Nh3+ 40. gxh3 Bxc1 $18)) 36... Kg7 {[%emt 0:00:47]} 37. Nc6 {[%emt 0:01:03]} Rf7 $2 (37... Bxc6 $16 {is a better chance.} 38. Rxc6 (38. dxc6 Qc7 $16) 38... h4 39. Rxa6 g3) 38. Nd4 {[%emt 0:01:03]} Qe8 {[%emt 0:02:17]} 39. Nf5+ {[%emt 0:00:17]} Kh7 {[%emt 0:00:11]} 40. Nxd6 1-0

[Event "GER-chT Youth Countries 2018"]
[Site "Wurzburg"]
[Date "2018.10.04"]
[Round "3"]
[White "Bardorz, Jana"]
[Black "Leser, Katrin"]
[Result "0-1"]
[ECO "C06"]
[WhiteElo "1810"]
[BlackElo "2018"]
[Annotator "NA RC"]
[PlyCount "118"]
[EventDate "2018.10.03"]
[EventType "team-tourn"]
[EventCountry "GER"]
[SourceTitle "playchess.com"]
[Source "ChessBase"]
[SourceQuality "1"]
[TimeControl "40/5400+30:1800+30"]

1. e4 {[%emt 0:00:00]} e6 {[%emt 0:00:00]} 2. d4 {[%emt 0:00:00]} d5 {[%emt 0:00:00]} 3. Nd2 {[%emt 0:00:00]} Nf6 {[%emt 0:00:00]} 4. e5 {[%emt 0:00:00]} Nfd7 {[%emt 0:00:00]} 5. Bd3 {[%emt 0:00:00]} c5 {[%emt 0:00:01]} 6. c3 {[%emt 0:00:02]} Nc6 {[%emt 0:00:13]} 7. Ne2 {[%emt 0:00:28]} cxd4 {[%emt 0:00:07]} 8. cxd4 {[%emt 0:00:06]} f6 {[%emt 0:00:07]} 9. exf6 {[%emt 0:00:06]} Nxf6 {[%emt 0:00:05]} 10. Nf3 {[%emt 0:00:24]} Bd6 {[%emt 0:00:17]} 11. O-O {[%emt 0:00:36]} Qc7 {[%emt 0:00:11]} 12. Bg5 {[%emt 0:00:05]} O-O {[%emt 0:00:12]} 13. Bh4 {[%emt 0:00:05]} Nh5 {[%emt 0:00:36]} 14. Qc2 {[%emt 0:00:37]} h6 {[%emt 0:00:53]} 15. Bh7+ {[%emt 0:00:36] C06: French Tarrasch: 3...Nf6 4 e5 Nfd7 5 Bd3 main lines} Kh8 {[%emt 0:00:09]} 16. Bg6 {[%emt 0:00:06]} Rxf3 {[%emt 0:24:00]} (16... Nf4 17. Nxf4 Rxf4 18. Bg3 Rxf3 19. gxf3 Qe7 20. Rad1 Bd7 21. Qc3 Rf8 22. Bb1 Kg8 {1-0 (41) Artemiev,V (2653)-Onischuk,V (2615) Martuni 2016}) 17. Bxh5 {[%emt 0:05:37]} Rf8 {[%emt 0:06:13]} 18. Bg3 {[%emt 0:06:27]} e5 {[%emt 0:06:12]} 19. dxe5 {[%emt 0:06:13]} Bxe5 {[%emt 0:01:19] [#]} 20. Qc5 $146 {[%emt 0:08:14]} ({Predecessor:} 20. Rad1 Be6 21. Nd4 Nxd4 22. Qxc7 Bxc7 23. Bxc7 {1-0 (66) Burg,T (2508)-Sieciechowicz,M (2438) Erice 2014}) 20... Be6 {[%emt 0:09:52]} 21. Nc3 {[%emt 0:07:10]} Bxg3 {[%emt 0:06:17]} 22. fxg3 {[%emt 0:03:36]} Rxf1+ {[%emt 0:17:04]} 23. Rxf1 {[%emt 0:01:13]} Qd7 {[%emt 0:04:43]} 24. Ne2 {[%emt 0:08:48]} Qe7 {[%emt 0:04:46]} 25. Qxe7 {[%emt 0:08:10]} Nxe7 {[%emt 0:00:05]} 26. Nd4 {[%emt 0:04:27]} Bg8 {[%emt 0:00:52]} 27. Bg4 {[%emt 0:03:21]} Nc6 {[%emt 0:01:34]} 28. Nxc6 {[%emt 0:04:43]} bxc6 {[%emt 0:00:04]} 29. Rc1 {[%emt 0:00:40]} Rd8 {[%emt 0:09:29]} (29... Rb8 $11 {remains equal.}) 30. Rxc6 {[%emt 0:03:05]} d4 {[%emt 0:00:05] [#]} 31. Kf2 {[%emt 0:03:05]} ({Better is} 31. b3 $1 $16) 31... Bxa2 {[%emt 0:02:08]} 32. Rc8 {[%emt 0:01:00]} Rxc8 {[%emt 0:00:59]} 33. Bxc8 {[%emt 0:00:06]} Bb1 {[%emt 0:02:24]} 34. Ke2 {[%emt 0:03:51] [#]} Kg8 $1 {[%emt 0:01:16]} 35. Ba6 {[%emt 0:01:19] [#]} Kf7 $1 {[%emt 0:01:11]} 36. Bd3 {[%emt 0:00:40]} Ba2 {[%emt 0:00:04]} 37. Bb5 {[%emt 0:06:27]} Ke6 {[%emt 0:00:33]} 38. Kd3 {[%emt 0:02:20]} Ke5 {[%emt 0:01:01]} 39. Kd2 {[%emt 0:02:23]} Bd5 {[%emt 0:00:41]} 40. Bf1 {[%emt 0:01:40]} g5 {[%emt 0:00:58]} 41. h4 {[%emt 0:32:03]} ({White should try} 41. b4 $1 $15) 41... Be4 {[%emt 0:31:02]} 42. Bb5 {[%emt 0:03:57]} Bxg2 {[%emt 0:01:09]} 43. Ba6 {[%emt 0:01:18]} Bd5 {[%emt 0:00:00]} (43... gxh4 $142 44. gxh4 Be4) 44. Kd3 $2 {[%emt 0:00:00] [#]} (44. hxg5 hxg5 45. Bd3) 44... Be4+ $1 {[%emt 0:00:00]} 45. Kd2 {[%emt 0:00:00]} gxh4 {[%emt 0:00:00]} 46. gxh4 {[%emt 0:00:00]} Kf4 {[%emt 0:00:00]} 47. h5 {[%emt 0:00:00]} Bf3 {[%emt 0:00:00]} 48. Be2 {[%emt 0:00:00]} Bxe2 {[%emt 0:00:00]} 49. Kxe2 {[%emt 0:00:00]} Kg4 {[%emt 0:00:00]} 50. Kd3 {[%emt 0:00:00]} Kxh5 {[%emt 0:00:00]} 51. Kxd4 {[%emt 0:00:00]} Kg4 {[%emt 0:00:00]} 52. b4 {[%emt 0:00:00]} h5 {[%emt 0:00:00]} 53. Kc5 {[%emt 0:00:00]} h4 {[%emt 0:00:00]} 54. Kb5 {[%emt 0:00:00]} h3 {[%emt 0:00:00]} 55. Ka6 {[%emt 0:00:00]} h2 {[%emt 0:00:00]} 56. Kxa7 {[%emt 0:00:00]} h1=Q {[%emt 0:00:00]} 57. b5 {[%emt 0:00:00]} Qd5 {[%emt 0:00:00]} 58. b6 {[%emt 0:00:00]} Qa5+ {[%emt 0:00:00]} 59. Kb7 {[%emt 0:00:00]} Kf5 {[%emt 0:00:00]} 0-1

[Event "GER-chT Youth Countries 2018"]
[Site "Wurzburg"]
[Date "2018.10.04"]
[Round "3"]
[White "Metzdorf, Matteo"]
[Black "Wagner, Margarethe"]
[Result "1-0"]
[ECO "B23"]
[WhiteElo "1806"]
[BlackElo "1643"]
[Annotator "NA RC"]
[PlyCount "53"]
[EventDate "2018.10.03"]
[EventType "team-tourn"]
[EventCountry "GER"]
[SourceTitle "playchess.com"]
[Source "ChessBase"]
[SourceQuality "1"]
[TimeControl "40/5400+30:1800+30"]

1. e4 {[%emt 0:00:00]} c5 {[%emt 0:00:00]} 2. Nc3 {[%emt 0:00:00]} a6 {[%emt 0:00:00]} 3. g3 {[%emt 0:00:00]} b5 {[%emt 0:00:48]} 4. Bg2 {[%emt 0:00:05]} Bb7 {[%emt 0:00:50]} 5. d3 {[%emt 0:00:34]} e6 {[%emt 0:00:41]} 6. Nh3 {[%emt 0:00:46]} Be7 {[%emt 0:02:15] B23: Closed Sicilian: Lines without g3} (6... b4 7. Ne2 d5 8. e5 Nc6 9. f4 Nh6 10. Nf2 Nf5 11. O-O Qb6 12. c3 Be7 13. g4 Nh4 14. Bh1 {0-1 (35) Yu,Y (2738)-Khismatullin,D (2639) Moscow 2017}) 7. O-O {[%emt 0:04:18]} Nf6 {[%emt 0:01:58]} 8. e5 {[%emt 0:07:39]} Nd5 $146 {[%emt 0:03:00]} ({Predecessor:} 8... Bxg2 9. Kxg2 Ng8 10. Qg4 g6 11. Ne4 Qc7 12. Bf4 Nc6 13. Nf6+ Bxf6 14. exf6 {½-½ (47) Vinal Gutierrez,P (2049)-Lerendegui Lasa,O (1908) Pamplona 2016}) 9. Nxd5 {[%emt 0:00:51]} Bxd5 {[%emt 0:01:09]} 10. Bxd5 {[%emt 0:01:22]} exd5 {[%emt 0:00:13]} 11. Qg4 {[%emt 0:10:57]} g6 {[%emt 0:10:04]} 12. Qf3 {[%emt 0:08:53]} Nc6 {[%emt 0:03:11]} 13. Re1 {[%emt 0:11:32]} Nd4 {[%emt 0:03:30]} 14. Qd1 {[%emt 0:00:25]} Ne6 {[%emt 0:06:04]} 15. f4 {[%emt 0:06:35]} Nd4 {[%emt 0:05:34]} 16. c3 {[%emt 0:06:00]} Nf5 {[%emt 0:01:11]} 17. Qf3 {[%emt 0:00:38]} d4 {[%emt 0:00:50]} 18. Nf2 {[%emt 0:05:44]} O-O {[%emt 0:03:27]} 19. Ne4 {[%emt 0:03:04]} d5 {[%emt 0:03:16]} 20. exd6 {[%emt 0:06:01]} Bxd6 {[%emt 0:00:19]} 21. g4 {[%emt 0:01:25]} Ng7 {[%emt 0:02:38]} 22. f5 {[%emt 0:07:49]} Qh4 {[%emt 0:01:56]} 23. Re2 {[%emt 0:02:11]} gxf5 {[%emt 0:14:07]} 24. gxf5 {[%emt 0:02:20]} ({Resist} 24. Nxd6 Qxg4+ 25. Qxg4 fxg4 $18) 24... Bc7 $18 {[%emt 0:02:51]} (24... Be5 25. f6 (25. Nxc5 f6 $18) 25... Ne6) 25. Bg5 {[%emt 0:01:02]} Bxh2+ {[%emt 0:06:06]} 26. Rxh2 {[%emt 0:00:31]} Qxh2+ {[%emt 0:00:17]} 27. Kxh2 {[%emt 0:00:11]} 1-0